[Event "Titled Tuesday Blitz May 03 Early 2022"]
[White "Sailer, Mike"]
[Black "Buscar, Michael"]
[WhiteFideId "2012901"]
[BlackFideId "2603616"]
[WhiteElo "2109"]
[BlackElo "2010"]
[Result "0-1"]
[Round "07"]
[TimeControl "180+1"]
[Date "2022.05.03"]
[WhiteClock "0:00:02"]
[BlackClock "0:01:12"]

1. d4 {[%clk 0:02:22]}  Nf6 {[%clk 0:02:57]} 2. Nf3 {[%clk 0:02:20]}  g6 {[%clk 0:02:57]} 3. Bf4 {[%clk 0:02:20]}  Bg7 {[%clk 0:02:57]} 4. e3 {[%clk 0:02:20]}  O-O {[%clk 0:02:58]} 5. Be2 {[%clk 0:02:20]}  d6 {[%clk 0:02:59]} 6. O-O {[%clk 0:02:21]}  Nbd7 {[%clk 0:02:57]} 7. h3 {[%clk 0:02:21]}  c5 {[%clk 0:02:54]} 8. c3 {[%clk 0:02:21]}  cxd4 {[%clk 0:02:53]} 9. exd4 {[%clk 0:02:20]}  Re8 {[%clk 0:02:51]} 10. Nbd2 {[%clk 0:02:17]}  e5 {[%clk 0:02:51]} 11. Bh2 {[%clk 0:02:15]}  e4 {[%clk 0:02:51]} 12. Ne1 {[%clk 0:02:15]}  d5 {[%clk 0:02:51]} 13. Nc2 {[%clk 0:02:10]}  Nf8 {[%clk 0:02:51]} 14. c4 {[%clk 0:02:00]}  dxc4 {[%clk 0:02:48]} 15. Nxc4 {[%clk 0:01:58]}  Be6 {[%clk 0:02:44]} 16. N2e3 {[%clk 0:01:41]}  Re7 {[%clk 0:02:42]} 17. Ne5 {[%clk 0:01:27]}  Qa5 {[%clk 0:02:25]} 18. a3 {[%clk 0:01:22]}  Rd8 {[%clk 0:02:23]} 19. b4 {[%clk 0:01:22]}  Qb6 {[%clk 0:02:20]} 20. Nc2 {[%clk 0:00:53]}  Bb3 {[%clk 0:02:18]} 21. Bc4 {[%clk 0:00:34]}  Bxc2 {[%clk 0:01:59]} 22. Qxc2 {[%clk 0:00:34]}  Rxd4 {[%clk 0:02:00]} 23. Nxf7 {[%clk 0:00:22]}  Rxf7 {[%clk 0:01:57]} 24. Bxf7+ {[%clk 0:00:22]}  Kxf7 {[%clk 0:01:57]} 25. Be5 {[%clk 0:00:20]}  Rd5 {[%clk 0:01:46]} 26. Qb3 {[%clk 0:00:18]}  Qe6 {[%clk 0:01:45]} 27. Bb2 {[%clk 0:00:12]}  Rd3 {[%clk 0:01:39]} 28. Qa4 {[%clk 0:00:11]}  a6 {[%clk 0:01:32]} 29. Qa5 {[%clk 0:00:10]}  N8d7 {[%clk 0:01:30]} 30. Rae1 {[%clk 0:00:09]}  Qb6 {[%clk 0:01:25]} 31. Qg5 {[%clk 0:00:06]}  Qd6 {[%clk 0:01:15]} 32. Re2 {[%clk 0:00:02]}  Qd5 {[%clk 0:01:14]} 33. Qg3 {[%clk 0:00:02]}  Rxg3 {[%clk 0:01:12]} 0-1


[Site "https://www.chess.com"]

[Event "Titled Tuesday Blitz May 03 Early 2022"]
[White "Saldano Dayer, Horacio"]
[Black "Liyanage, Ranindu Dilshan"]
[WhiteFideId "103411"]
[BlackFideId "9915834"]
[WhiteElo "2419"]
[BlackElo "1858"]
[Result "1-0"]
[Round "07"]
[TimeControl "180+1"]
[Date "2022.05.03"]
[WhiteClock "0:00:08"]
[BlackClock "0:00:31"]

1. d4 {[%clk 0:03:00]}  Nf6 {[%clk 0:02:59]} 2. Bg5 {[%clk 0:03:00]}  d5 {[%clk 0:02:59]} 3. e3 {[%clk 0:02:58]}  Nbd7 {[%clk 0:02:59]} 4. Nf3 {[%clk 0:02:52]}  e6 {[%clk 0:02:57]} 5. c4 {[%clk 0:02:51]}  c5 {[%clk 0:02:54]} 6. Nc3 {[%clk 0:02:51]}  h6 {[%clk 0:02:48]} 7. Bh4 {[%clk 0:02:49]}  g5 {[%clk 0:02:45]} 8. Bg3 {[%clk 0:02:48]}  cxd4 {[%clk 0:02:46]} 9. exd4 {[%clk 0:02:35]}  Bg7 {[%clk 0:02:43]} 10. Bd6 {[%clk 0:02:12]}  Ne4 {[%clk 0:02:42]} 11. Nxe4 {[%clk 0:02:03]}  dxe4 {[%clk 0:02:43]} 12. Ne5 {[%clk 0:02:03]}  Qb6 {[%clk 0:02:31]} 13. c5 {[%clk 0:01:50]}  Qxb2 {[%clk 0:02:29]} 14. Rb1 {[%clk 0:01:16]}  Qxa2 {[%clk 0:02:19]} 15. Bc4 {[%clk 0:01:08]}  Qa5+ {[%clk 0:02:14]} 16. Kf1 {[%clk 0:01:08]}  Bf8 {[%clk 0:01:28]} 17. Nxf7 {[%clk 0:00:43]}  Kxf7 {[%clk 0:01:11]} 18. Qh5+ {[%clk 0:00:43]}  Kf6 {[%clk 0:01:11]} 19. Qe8 {[%clk 0:00:11]}  Nb6 {[%clk 0:00:33]} 20. Be5+ {[%clk 0:00:09]}  Kf5 {[%clk 0:00:31]} 21. Qf7+ {[%clk 0:00:09]}  Kg4 {[%clk 0:00:31]} 22. Be2+ {[%clk 0:00:08]}  Kh4 {[%clk 0:00:31]} 23. Qh5# {[%clk 0:00:08]} 1-0


[Site "https://www.chess.com"]

[Event "Titled Tuesday Blitz May 03 Early 2022"]
[White "Samarth, J Rao"]
[Black "Mikhalsky, Vladimir"]
[WhiteFideId "46652370"]
[BlackFideId "14144352"]
[WhiteElo "1514"]
[BlackElo "2301"]
[Result "0-1"]
[Round "07"]
[TimeControl "180+1"]
[Date "2022.05.03"]
[WhiteClock "0:01:13"]
[BlackClock "0:00:54"]

1. d4 {[%clk 0:03:00]}  Nf6 {[%clk 0:02:58]} 2. c4 {[%clk 0:02:56]}  g6 {[%clk 0:02:57]} 3. Nc3 {[%clk 0:02:45]}  Bg7 {[%clk 0:02:57]} 4. e4 {[%clk 0:02:41]}  O-O {[%clk 0:02:56]} 5. f4 {[%clk 0:02:37]}  d6 {[%clk 0:02:56]} 6. Nf3 {[%clk 0:02:32]}  c5 {[%clk 0:02:56]} 7. d5 {[%clk 0:02:29]}  e6 {[%clk 0:02:57]} 8. Be2 {[%clk 0:02:18]}  b5 {[%clk 0:02:51]} 9. cxb5 {[%clk 0:02:16]}  exd5 {[%clk 0:02:50]} 10. exd5 {[%clk 0:02:15]}  a6 {[%clk 0:02:48]} 11. b6 {[%clk 0:02:13]}  Re8 {[%clk 0:02:45]} 12. O-O {[%clk 0:02:12]}  Qxb6 {[%clk 0:02:42]} 13. h3 {[%clk 0:02:08]}  Bf5 {[%clk 0:02:18]} 14. g4 {[%clk 0:01:59]}  Be4 {[%clk 0:02:11]} 15. Nxe4 {[%clk 0:01:56]}  Nxe4 {[%clk 0:02:11]} 16. Kg2 {[%clk 0:01:53]}  Nd7 {[%clk 0:02:05]} 17. Qc2 {[%clk 0:01:47]}  Ndf6 {[%clk 0:01:59]} 18. Bd3 {[%clk 0:01:43]}  c4 {[%clk 0:01:13]} 19. Bxc4 {[%clk 0:01:41]}  Rac8 {[%clk 0:01:11]} 20. Qb3 {[%clk 0:01:37]}  Qa7 {[%clk 0:01:02]} 21. Be3 {[%clk 0:01:33]}  Nc5 {[%clk 0:01:02]} 22. Bxc5 {[%clk 0:01:30]}  Qxc5 {[%clk 0:01:00]} 23. Rac1 {[%clk 0:01:24]}  Rb8 {[%clk 0:00:59]} 24. Qc2 {[%clk 0:01:13]}  Nxg4 {[%clk 0:00:54]} 0-1


[Site "https://www.chess.com"]

[Event "Titled Tuesday Blitz May 03 Early 2022"]
[White "Sargsyan, Anna M."]
[Black "Hamley, Ryan"]
[WhiteFideId "13308130"]
[BlackFideId "30959497"]
[WhiteElo "2271"]
[BlackElo "2489"]
[Result "0-1"]
[Round "07"]
[TimeControl "180+1"]
[Date "2022.05.03"]
[WhiteClock "0:01:55"]
[BlackClock "0:02:04"]

1. d4 {[%clk 0:03:00]}  Nf6 {[%clk 0:02:59]} 2. c4 {[%clk 0:02:58]}  g6 {[%clk 0:02:57]} 3. g3 {[%clk 0:02:58]}  Bg7 {[%clk 0:02:57]} 4. Bg2 {[%clk 0:02:59]}  O-O {[%clk 0:02:58]} 5. Nc3 {[%clk 0:02:59]}  d6 {[%clk 0:02:58]} 6. Nf3 {[%clk 0:02:59]}  Nc6 {[%clk 0:02:57]} 7. O-O {[%clk 0:02:59]}  e5 {[%clk 0:02:57]} 8. dxe5 {[%clk 0:02:51]}  dxe5 {[%clk 0:02:57]} 9. Bg5 {[%clk 0:02:51]}  Be6 {[%clk 0:02:56]} 10. Nd2 {[%clk 0:02:49]}  h6 {[%clk 0:02:53]} 11. Bxf6 {[%clk 0:02:48]}  Qxf6 {[%clk 0:02:52]} 12. Nd5 {[%clk 0:02:47]}  Qd8 {[%clk 0:02:51]} 13. Rc1 {[%clk 0:02:39]}  Ne7 {[%clk 0:02:47]} 14. Nb3 {[%clk 0:02:38]}  c6 {[%clk 0:02:45]} 15. Nxe7+ {[%clk 0:02:35]}  Qxe7 {[%clk 0:02:46]} 16. e4 {[%clk 0:02:31]}  Rfd8 {[%clk 0:02:42]} 17. Qe2 {[%clk 0:02:31]}  Rd7 {[%clk 0:02:41]} 18. Qe3 {[%clk 0:02:30]}  a5 {[%clk 0:02:37]} 19. Nc5 {[%clk 0:02:28]}  Rd4 {[%clk 0:02:36]} 20. Nxe6 {[%clk 0:02:26]}  Qxe6 {[%clk 0:02:36]} 21. b3 {[%clk 0:02:23]}  Rad8 {[%clk 0:02:36]} 22. Qc3 {[%clk 0:02:21]}  a4 {[%clk 0:02:20]} 23. bxa4 {[%clk 0:02:21]}  Bf8 {[%clk 0:02:18]} 24. Qb3 {[%clk 0:02:19]}  R8d7 {[%clk 0:02:15]} 25. Rfe1 {[%clk 0:02:11]}  Bc5 {[%clk 0:02:14]} 26. Re2 {[%clk 0:02:07]}  Rd3 {[%clk 0:02:11]} 27. Qb1 {[%clk 0:02:03]}  Rd2 {[%clk 0:02:08]} 28. Bf3 {[%clk 0:01:58]}  Rxe2 {[%clk 0:02:05]} 29. Bxe2 {[%clk 0:01:58]}  Rd2 {[%clk 0:02:04]} 30. Re1 {[%clk 0:01:55]}  Qf6 {[%clk 0:02:04]} 0-1


[Site "https://www.chess.com"]

[Event "Titled Tuesday Blitz May 03 Early 2022"]
[White "Seo, Jung Min"]
[Black "Nozdrachev, Leonid"]
[WhiteFideId "1734687"]
[BlackFideId "24113433"]
[WhiteElo "2401"]
[BlackElo "2242"]
[Result "1-0"]
[Round "07"]
[TimeControl "180+1"]
[Date "2022.05.03"]
[WhiteClock "0:01:01"]
[BlackClock "0:00:14"]

1. e4 {[%clk 0:03:00]}  d6 {[%clk 0:02:59]} 2. d4 {[%clk 0:03:00]}  Nf6 {[%clk 0:02:59]} 3. Nc3 {[%clk 0:03:01]}  e5 {[%clk 0:02:59]} 4. dxe5 {[%clk 0:03:01]}  dxe5 {[%clk 0:03:00]} 5. Qxd8+ {[%clk 0:03:01]}  Kxd8 {[%clk 0:03:01]} 6. Nf3 {[%clk 0:03:01]}  Bd6 {[%clk 0:03:01]} 7. Bc4 {[%clk 0:03:00]}  Be6 {[%clk 0:02:58]} 8. Bxe6 {[%clk 0:03:00]}  fxe6 {[%clk 0:02:58]} 9. Be3 {[%clk 0:02:59]}  Ke7 {[%clk 0:02:58]} 10. a4 {[%clk 0:02:55]}  a6 {[%clk 0:02:58]} 11. Ke2 {[%clk 0:02:50]}  Nc6 {[%clk 0:02:57]} 12. h3 {[%clk 0:02:45]}  Bb4 {[%clk 0:02:55]} 13. Nd2 {[%clk 0:02:43]}  Bxc3 {[%clk 0:02:54]} 14. bxc3 {[%clk 0:02:43]}  Na5 {[%clk 0:02:48]} 15. Rab1 {[%clk 0:02:37]}  b6 {[%clk 0:02:48]} 16. f3 {[%clk 0:02:35]}  Nh5 {[%clk 0:02:43]} 17. Rhd1 {[%clk 0:02:33]}  Rhd8 {[%clk 0:02:40]} 18. h4 {[%clk 0:02:29]}  Rd7 {[%clk 0:02:33]} 19. Bg5+ {[%clk 0:02:29]}  Kf7 {[%clk 0:02:27]} 20. Nc4 {[%clk 0:02:27]}  Ng3+ {[%clk 0:02:16]} 21. Kf2 {[%clk 0:02:24]}  Rxd1 {[%clk 0:01:55]} 22. Nxe5+ {[%clk 0:02:19]}  Ke8 {[%clk 0:01:56]} 23. Rxd1 {[%clk 0:02:19]}  Nh5 {[%clk 0:01:54]} 24. g4 {[%clk 0:01:38]}  Nf6 {[%clk 0:01:53]} 25. h5 {[%clk 0:01:37]}  h6 {[%clk 0:01:48]} 26. Bf4 {[%clk 0:01:33]}  Ke7 {[%clk 0:01:42]} 27. Ng6+ {[%clk 0:01:31]}  Ke8 {[%clk 0:01:33]} 28. Bxc7 {[%clk 0:01:31]}  Nc4 {[%clk 0:01:29]} 29. Ne5 {[%clk 0:01:27]}  Nb2 {[%clk 0:01:23]} 30. Rd6 {[%clk 0:01:25]}  Nxa4 {[%clk 0:01:19]} 31. Rxe6+ {[%clk 0:01:24]}  Kf8 {[%clk 0:01:18]} 32. Bxb6 {[%clk 0:01:23]}  Nxc3 {[%clk 0:00:56]} 33. Ba5 {[%clk 0:01:22]}  Nb5 {[%clk 0:00:51]} 34. c4 {[%clk 0:01:21]}  Nd4 {[%clk 0:00:48]} 35. Rd6 {[%clk 0:01:17]}  Nb3 {[%clk 0:00:46]} 36. Bb4 {[%clk 0:01:14]}  Kg8 {[%clk 0:00:42]} 37. Rd3 {[%clk 0:01:13]}  Nc1 {[%clk 0:00:36]} 38. Ra3 {[%clk 0:01:11]}  a5 {[%clk 0:00:30]} 39. Bd2 {[%clk 0:01:09]}  Rf8 {[%clk 0:00:22]} 40. Bxc1 {[%clk 0:01:06]}  Nxe4+ {[%clk 0:00:21]} 41. Ke3 {[%clk 0:01:06]}  Nd6 {[%clk 0:00:20]} 42. Rxa5 {[%clk 0:01:05]}  Re8 {[%clk 0:00:20]} 43. Kd3 {[%clk 0:01:02]}  Rd8 {[%clk 0:00:18]} 44. Rd5 {[%clk 0:01:02]}  Re8 {[%clk 0:00:13]} 45. Rxd6 {[%clk 0:01:01]}  Rxe5 {[%clk 0:00:14]} 46. Be3 {[%clk 0:01:01]} 1-0


[Site "https://www.chess.com"]

[Event "Titled Tuesday Blitz May 03 Early 2022"]
[White "Shimanov, Aleksandr"]
[Black "Skliarov, Viktor"]
[WhiteFideId "4198603"]
[BlackFideId "14106736"]
[WhiteElo "2636"]
[BlackElo "2229"]
[Result "1-0"]
[Round "07"]
[TimeControl "180+1"]
[Date "2022.05.03"]
[WhiteClock "0:01:50"]
[BlackClock "0:01:28"]

1. d4 {[%clk 0:03:00]}  Nf6 {[%clk 0:02:59]} 2. Nc3 {[%clk 0:03:00]}  d5 {[%clk 0:02:58]} 3. Bf4 {[%clk 0:03:00]}  a6 {[%clk 0:02:58]} 4. e3 {[%clk 0:02:59]}  c5 {[%clk 0:02:57]} 5. dxc5 {[%clk 0:02:54]}  Nc6 {[%clk 0:02:56]} 6. Nf3 {[%clk 0:02:52]}  e6 {[%clk 0:02:54]} 7. Na4 {[%clk 0:02:48]}  Bxc5 {[%clk 0:02:50]} 8. Nxc5 {[%clk 0:02:48]}  Qa5+ {[%clk 0:02:50]} 9. c3 {[%clk 0:02:48]}  Qxc5 {[%clk 0:02:50]} 10. Bd3 {[%clk 0:02:47]}  O-O {[%clk 0:02:49]} 11. O-O {[%clk 0:02:45]}  b5 {[%clk 0:02:47]} 12. Ne5 {[%clk 0:02:42]}  Bb7 {[%clk 0:02:37]} 13. Qf3 {[%clk 0:02:18]}  Nxe5 {[%clk 0:02:01]} 14. Bxe5 {[%clk 0:02:17]}  Ne4 {[%clk 0:02:02]} 15. Bxe4 {[%clk 0:02:15]}  dxe4 {[%clk 0:02:00]} 16. Qg3 {[%clk 0:02:15]}  f6 {[%clk 0:01:42]} 17. Bd6 {[%clk 0:02:15]}  Qb6 {[%clk 0:01:36]} 18. Bxf8 {[%clk 0:02:15]}  Rxf8 {[%clk 0:01:37]} 19. Rfd1 {[%clk 0:02:12]}  Bd5 {[%clk 0:01:37]} 20. b3 {[%clk 0:02:06]}  Rc8 {[%clk 0:01:35]} 21. Rac1 {[%clk 0:02:05]}  Qa5 {[%clk 0:01:29]} 22. c4 {[%clk 0:02:00]}  bxc4 {[%clk 0:01:29]} 23. bxc4 {[%clk 0:02:01]}  Rxc4 {[%clk 0:01:29]} 24. Rxc4 {[%clk 0:01:53]}  Bxc4 {[%clk 0:01:30]} 25. Qb8+ {[%clk 0:01:49]}  Kf7 {[%clk 0:01:28]} 26. Qb7+ {[%clk 0:01:50]} 1-0


[Site "https://www.chess.com"]

[Event "Titled Tuesday Blitz May 03 Early 2022"]
[White "Shuvalov, Evgenij"]
[Black "Rustemov, Alexander"]
[WhiteFideId "4187237"]
[BlackFideId "4119002"]
[WhiteElo "2130"]
[BlackElo "2712"]
[Result "0-1"]
[Round "07"]
[TimeControl "180+1"]
[Date "2022.05.03"]
[WhiteClock "0:00:01"]
[BlackClock "0:00:05"]

1. Nf3 {[%clk 0:03:00]}  c5 {[%clk 0:02:57]} 2. c4 {[%clk 0:03:01]}  g6 {[%clk 0:02:56]} 3. d4 {[%clk 0:03:00]}  Bg7 {[%clk 0:02:55]} 4. d5 {[%clk 0:03:00]}  f5 {[%clk 0:02:53]} 5. g3 {[%clk 0:02:56]}  d6 {[%clk 0:02:51]} 6. Bg2 {[%clk 0:02:56]}  Nf6 {[%clk 0:02:51]} 7. Nc3 {[%clk 0:02:55]}  O-O {[%clk 0:02:52]} 8. O-O {[%clk 0:02:55]}  Na6 {[%clk 0:02:52]} 9. Rb1 {[%clk 0:02:41]}  Nc7 {[%clk 0:02:51]} 10. b3 {[%clk 0:02:38]}  a6 {[%clk 0:02:50]} 11. Bb2 {[%clk 0:02:31]}  b5 {[%clk 0:02:47]} 12. Nd2 {[%clk 0:02:27]}  Rb8 {[%clk 0:02:45]} 13. Qc2 {[%clk 0:02:25]}  e5 {[%clk 0:02:41]} 14. dxe6 {[%clk 0:02:22]}  Bxe6 {[%clk 0:02:41]} 15. cxb5 {[%clk 0:02:15]}  axb5 {[%clk 0:02:40]} 16. Rbd1 {[%clk 0:02:14]}  Qe7 {[%clk 0:02:38]} 17. Rfe1 {[%clk 0:02:08]}  d5 {[%clk 0:02:37]} 18. e3 {[%clk 0:02:07]}  Rfc8 {[%clk 0:02:13]} 19. Nf3 {[%clk 0:02:02]}  b4 {[%clk 0:02:08]} 20. Na4 {[%clk 0:02:00]}  Nb5 {[%clk 0:02:08]} 21. Be5 {[%clk 0:01:50]}  Rb7 {[%clk 0:02:02]} 22. Qb2 {[%clk 0:01:47]}  Ne4 {[%clk 0:02:01]} 23. Bxg7 {[%clk 0:01:32]}  Qxg7 {[%clk 0:02:02]} 24. Qxg7+ {[%clk 0:01:32]}  Kxg7 {[%clk 0:02:02]} 25. Rc1 {[%clk 0:01:27]}  Nbc3 {[%clk 0:02:01]} 26. Nxc3 {[%clk 0:01:25]}  Nxc3 {[%clk 0:02:01]} 27. a3 {[%clk 0:01:13]}  Ne4 {[%clk 0:01:45]} 28. axb4 {[%clk 0:00:52]}  Rxb4 {[%clk 0:01:44]} 29. Ra1 {[%clk 0:00:45]}  Rc7 {[%clk 0:01:36]} 30. Ra6 {[%clk 0:00:42]}  Bg8 {[%clk 0:01:33]} 31. Rea1 {[%clk 0:00:28]}  Rxb3 {[%clk 0:01:32]} 32. Ra7 {[%clk 0:00:28]}  Rb1+ {[%clk 0:01:23]} 33. Rxb1 {[%clk 0:00:25]}  Rxa7 {[%clk 0:01:23]} 34. Ne5 {[%clk 0:00:23]}  Ra2 {[%clk 0:01:18]} 35. Bxe4 {[%clk 0:00:21]}  fxe4 {[%clk 0:00:57]} 36. Rb7+ {[%clk 0:00:20]}  Kh6 {[%clk 0:00:57]} 37. Ng4+ {[%clk 0:00:19]}  Kg5 {[%clk 0:00:56]} 38. h3 {[%clk 0:00:17]}  h5 {[%clk 0:00:50]} 39. Ne5 {[%clk 0:00:17]}  Kf5 {[%clk 0:00:37]} 40. Nd7 {[%clk 0:00:16]}  c4 {[%clk 0:00:29]} 41. Rb6 {[%clk 0:00:16]}  Be6 {[%clk 0:00:21]} 42. Nf8 {[%clk 0:00:16]}  Bf7 {[%clk 0:00:18]} 43. Nd7 {[%clk 0:00:16]}  Be6 {[%clk 0:00:18]} 44. Nf8 {[%clk 0:00:16]}  c3 {[%clk 0:00:17]} 45. Rc6 {[%clk 0:00:13]}  Bf7 {[%clk 0:00:16]} 46. Nd7 {[%clk 0:00:13]}  Be6 {[%clk 0:00:15]} 47. Nf8 {[%clk 0:00:13]}  c2 {[%clk 0:00:14]} 48. Kg2 {[%clk 0:00:13]}  Bf7 {[%clk 0:00:12]} 49. Nd7 {[%clk 0:00:12]}  Be6 {[%clk 0:00:11]} 50. Nf8 {[%clk 0:00:13]}  Ra6 {[%clk 0:00:09]} 51. Rxc2 {[%clk 0:00:11]}  Bf7 {[%clk 0:00:09]} 52. Nd7 {[%clk 0:00:07]}  Rd6 {[%clk 0:00:06]} 53. Nc5 {[%clk 0:00:06]}  d4 {[%clk 0:00:06]} 54. exd4 {[%clk 0:00:07]}  Rxd4 {[%clk 0:00:06]} 55. Re2 {[%clk 0:00:03]}  Bd5 {[%clk 0:00:07]} 56. Re3 {[%clk 0:00:03]}  Rc4 {[%clk 0:00:07]} 57. Nb3 {[%clk 0:00:02]}  g5 {[%clk 0:00:06]} 58. Nd2 {[%clk 0:00:01]}  Rd4 {[%clk 0:00:06]} 59. Nf1 {[%clk 0:00:01]}  Rd1 {[%clk 0:00:05]} 0-1


[Site "https://www.chess.com"]

[Event "Titled Tuesday Blitz May 03 Early 2022"]
[White "Sychev, Klementy"]
[Black "Svane, Rasmus"]
[WhiteFideId "4114060"]
[BlackFideId "4657101"]
[WhiteElo "2564"]
[BlackElo "2645"]
[Result "1-0"]
[Round "07"]
[TimeControl "180+1"]
[Date "2022.05.03"]
[WhiteClock "0:01:12"]
[BlackClock "0:00:06"]

1. e4 {[%clk 0:03:00]}  c6 {[%clk 0:02:59]} 2. Nf3 {[%clk 0:02:58]}  d5 {[%clk 0:03:00]} 3. d3 {[%clk 0:02:58]}  dxe4 {[%clk 0:02:57]} 4. dxe4 {[%clk 0:02:58]}  Qxd1+ {[%clk 0:02:58]} 5. Kxd1 {[%clk 0:02:59]}  Nf6 {[%clk 0:02:59]} 6. Nfd2 {[%clk 0:02:59]}  h5 {[%clk 0:02:54]} 7. f3 {[%clk 0:02:51]}  h4 {[%clk 0:02:48]} 8. Nc4 {[%clk 0:02:46]}  Be6 {[%clk 0:02:21]} 9. Be3 {[%clk 0:02:43]}  g6 {[%clk 0:02:18]} 10. Nbd2 {[%clk 0:02:42]}  Bh6 {[%clk 0:02:18]} 11. Bf2 {[%clk 0:02:31]}  Na6 {[%clk 0:01:56]} 12. c3 {[%clk 0:02:27]}  h3 {[%clk 0:01:41]} 13. g3 {[%clk 0:02:22]}  Nc7 {[%clk 0:01:27]} 14. Kc2 {[%clk 0:02:21]}  b6 {[%clk 0:01:03]} 15. a4 {[%clk 0:02:20]}  c5 {[%clk 0:01:03]} 16. a5 {[%clk 0:02:17]}  b5 {[%clk 0:01:00]} 17. Ne5 {[%clk 0:02:17]}  c4 {[%clk 0:00:59]} 18. Be2 {[%clk 0:02:11]}  a6 {[%clk 0:00:41]} 19. Rhd1 {[%clk 0:02:07]}  Bc8 {[%clk 0:00:35]} 20. Nc6 {[%clk 0:01:42]}  Bb7 {[%clk 0:00:33]} 21. Nb4 {[%clk 0:01:42]}  Nd7 {[%clk 0:00:31]} 22. b3 {[%clk 0:01:29]}  cxb3+ {[%clk 0:00:31]} 23. Nxb3 {[%clk 0:01:30]}  Rc8 {[%clk 0:00:28]} 24. Rxd7 {[%clk 0:01:28]}  Bxe4+ {[%clk 0:00:26]} 25. fxe4 {[%clk 0:01:28]}  Kxd7 {[%clk 0:00:26]} 26. Nc5+ {[%clk 0:01:25]}  Ke8 {[%clk 0:00:27]} 27. Nbxa6 {[%clk 0:01:22]}  Nxa6 {[%clk 0:00:26]} 28. Bxb5+ {[%clk 0:01:21]}  Kf8 {[%clk 0:00:25]} 29. Bxa6 {[%clk 0:01:21]}  Rc7 {[%clk 0:00:24]} 30. Bb7 {[%clk 0:01:19]}  Kg7 {[%clk 0:00:14]} 31. a6 {[%clk 0:01:19]}  Bg5 {[%clk 0:00:08]} 32. a7 {[%clk 0:01:17]}  Bf6 {[%clk 0:00:04]} 33. a8=Q {[%clk 0:01:14]}  Rxa8 {[%clk 0:00:05]} 34. Rxa8 {[%clk 0:01:15]}  Be5 {[%clk 0:00:06]} 35. Bd4 {[%clk 0:01:12]}  Bxd4 {[%clk 0:00:05]} 36. cxd4 {[%clk 0:01:12]}  e5 {[%clk 0:00:06]} 37. Rc8 {[%clk 0:01:12]}  Rxc8 {[%clk 0:00:06]} 38. Bxc8 {[%clk 0:01:12]}  exd4 {[%clk 0:00:06]} 39. Bxh3 {[%clk 0:01:12]} 1-0


[Site "https://www.chess.com"]

[Event "Titled Tuesday Blitz May 03 Early 2022"]
[White "Toncheva, Nadya"]
[Black "Ramirez Vido, Robert Yorisan"]
[WhiteFideId "2924056"]
[BlackFideId "3513823"]
[WhiteElo "1884"]
[BlackElo "2304"]
[Result "0-1"]
[Round "07"]
[TimeControl "180+1"]
[Date "2022.05.03"]
[WhiteClock "0:00:04"]
[BlackClock "0:00:10"]

1. d4 {[%clk 0:03:00]}  g6 {[%clk 0:02:59]} 2. c4 {[%clk 0:03:01]}  Nf6 {[%clk 0:03:00]} 3. Nc3 {[%clk 0:03:01]}  Bg7 {[%clk 0:03:00]} 4. e4 {[%clk 0:03:01]}  d6 {[%clk 0:03:01]} 5. Be2 {[%clk 0:03:01]}  O-O {[%clk 0:03:00]} 6. Bg5 {[%clk 0:03:01]}  Na6 {[%clk 0:03:00]} 7. Qd2 {[%clk 0:02:59]}  e5 {[%clk 0:03:01]} 8. d5 {[%clk 0:02:57]}  Nc5 {[%clk 0:03:01]} 9. Qc2 {[%clk 0:02:58]}  a5 {[%clk 0:03:00]} 10. h4 {[%clk 0:02:51]}  h6 {[%clk 0:03:00]} 11. Be3 {[%clk 0:02:50]}  b6 {[%clk 0:02:58]} 12. O-O-O {[%clk 0:02:28]}  a4 {[%clk 0:02:55]} 13. Nh3 {[%clk 0:02:18]}  Ng4 {[%clk 0:02:16]} 14. Bxg4 {[%clk 0:02:09]}  Bxg4 {[%clk 0:02:15]} 15. f3 {[%clk 0:02:09]}  Bxh3 {[%clk 0:02:01]} 16. Rxh3 {[%clk 0:02:10]}  a3 {[%clk 0:02:01]} 17. b3 {[%clk 0:02:09]}  f5 {[%clk 0:02:00]} 18. h5 {[%clk 0:02:08]}  Qf6 {[%clk 0:01:39]} 19. hxg6 {[%clk 0:02:05]}  Qxg6 {[%clk 0:01:40]} 20. Rdh1 {[%clk 0:01:56]}  fxe4 {[%clk 0:01:16]} 21. Bxh6 {[%clk 0:01:45]}  Nd3+ {[%clk 0:01:13]} 22. Kb1 {[%clk 0:01:44]}  exf3 {[%clk 0:01:02]} 23. Bxg7 {[%clk 0:01:28]}  fxg2 {[%clk 0:00:52]} 24. Rh8+ {[%clk 0:00:49]}  Kxg7 {[%clk 0:00:50]} 25. R8h7+ {[%clk 0:00:21]}  Kg8 {[%clk 0:00:49]} 26. Rh8+ {[%clk 0:00:20]}  Kf7 {[%clk 0:00:47]} 27. Rxf8+ {[%clk 0:00:20]}  Rxf8 {[%clk 0:00:42]} 28. Rg1 {[%clk 0:00:21]}  Ke7 {[%clk 0:00:36]} 29. Qxg2 {[%clk 0:00:15]}  Qxg2 {[%clk 0:00:29]} 30. Rxg2 {[%clk 0:00:16]}  Rf1+ {[%clk 0:00:29]} 31. Nd1 {[%clk 0:00:14]}  Rxd1+ {[%clk 0:00:18]} 32. Kc2 {[%clk 0:00:14]}  Nb2 {[%clk 0:00:17]} 33. Rg7+ {[%clk 0:00:10]}  Kd8 {[%clk 0:00:17]} 34. Rg8+ {[%clk 0:00:10]}  Kd7 {[%clk 0:00:17]} 35. Rg7+ {[%clk 0:00:11]}  Kc8 {[%clk 0:00:18]} 36. Rg8+ {[%clk 0:00:11]}  Kb7 {[%clk 0:00:18]} 37. b4 {[%clk 0:00:06]}  Rh1 {[%clk 0:00:17]} 38. Kb3 {[%clk 0:00:05]}  Rh3+ {[%clk 0:00:16]} 39. Kc2 {[%clk 0:00:05]}  Nxc4 {[%clk 0:00:16]} 40. Rg4 {[%clk 0:00:05]}  b5 {[%clk 0:00:16]} 41. Rg1 {[%clk 0:00:03]}  e4 {[%clk 0:00:15]} 42. Re1 {[%clk 0:00:03]}  e3 {[%clk 0:00:15]} 43. Kb3 {[%clk 0:00:03]}  Rh2 {[%clk 0:00:15]} 44. Re2 {[%clk 0:00:03]}  Rxe2 {[%clk 0:00:12]} 45. Kc3 {[%clk 0:00:02]}  Rxa2 {[%clk 0:00:12]} 46. Kd4 {[%clk 0:00:02]}  e2 {[%clk 0:00:11]} 47. Kc3 {[%clk 0:00:03]}  e1=Q+ {[%clk 0:00:10]} 48. Kb3 {[%clk 0:00:04]} 0-1


[Site "https://www.chess.com"]